fUST/lending_fUST_20250715
["ID","MTS","AMOUNT","RATE_DAILY","PERIOD"]
[372256865,1752564651542,-460.0,0.00019726,2]
[372256866,1752564651551,-584.77,0.00019726,2]
[372256867,1752564651560,-591.18,0.00019726,2]
[372256868,1752564651569,-292.27343318,0.00019726,2]
[372256869,1752564651579,-268.90178847,0.00019726,2]
[372256870,1752564651588,-460.0,0.00019726,2]
[372256871,1752564651598,-2512.69,0.00019726,2]
[372256872,1752564651608,-494.56,0.00019726,2]
[372256873,1752564651621,-1537.25,0.00019726,2]
[372256874,1752564651631,-1404.97,0.00019726,2]
[372256875,1752564651641,-3688.31,0.00019726,2]
[372256876,1752564651651,-491.79,0.00019726,2]
[372256877,1752564651661,-460.0,0.00019726,2]
[372256878,1752564651670,-541.91,0.00019726,2]
[372256879,1752564651680,-460.0,0.00019726,2]
[372256880,1752564651692,-662.15,0.00019726,2]
[372256881,1752564651702,-1005.23,0.00019726,2]
[372256882,1752564651712,-383.96,0.00019726,2]
[372256883,1752564651722,-460.0,0.00019726,2]
[372256884,1752564651732,-460.0,0.00019726,2]
[372256885,1752564651742,-460.0,0.00019726,2]
[372256886,1752564651751,-627.89,0.00019726,2]
[372256887,1752564651761,-460.0,0.00019726,2]
[372256888,1752564651771,-460.0,0.00019726,2]
[372256889,1752564651781,-460.0,0.00019726,2]
[372256890,1752564651791,-460.0,0.00019726,2]
[372256891,1752564651800,-949.49,0.00019726,2]
[372256892,1752564651810,-460.0,0.00019726,2]
[372256893,1752564651820,-460.0,0.00019726,2]
[372256894,1752564651830,-2146.82,0.00019726,2]
[372256895,1752564651840,-460.0,0.00019726,2]
[372256896,1752564651850,-460.0,0.00019726,2]
[372256897,1752564651859,-460.0,0.00019726,2]
[372256898,1752564651868,-520.59,0.00019726,2]
[372256899,1752564651878,-460.0,0.00019726,2]
[372256900,1752564651887,-1433.72,0.00019726,2]
[372256901,1752564651897,-453.84995944,0.00019726,2]
[372256902,1752564651907,-460.0,0.00019726,2]
[372256903,1752564651917,-371.08042624,0.00019726,2]
[372256904,1752564651927,-460.0,0.00019726,2]
[372256905,1752564651936,-1202.12,0.00019726,2]
[372256906,1752564651946,-460.0,0.00019726,2]
[372256907,1752564651955,-460.0,0.00019726,2]
[372256908,1752564651965,-1807.59,0.00019726,2]
[372256909,1752564651974,-460.0,0.00019726,2]
[372256910,1752564651983,-460.0,0.00019726,2]
[372256911,1752564651993,-1568.56,0.00019726,2]
[372256912,1752564652002,-466.75911472,0.00019726,2]
[372256913,1752564652012,-910.07,0.00019726,2]
[372256914,1752564652021,-460.0,0.00019726,2]
[372256915,1752564652031,-460.0,0.00019726,2]
[372256916,1752564652040,-460.0,0.00019726,2]
[372256917,1752564652050,-460.0,0.00019726,2]
[372256918,1752564652059,-621.64,0.00019726,2]
[372256919,1752564652068,-460.0,0.00019726,2]
[372256920,1752564652078,-587.78,0.00019726,2]
[372256921,1752564652087,-460.0,0.00019726,2]
[372256922,1752564652097,-460.0,0.00019726,2]
[372256923,1752564652107,-1167.28,0.00019726,2]
[372256924,1752564652116,-460.0,0.00019726,2]
[372256925,1752564652126,-460.0,0.00019726,2]
[372256926,1752564652136,-460.0,0.00019726,2]
[372256927,1752564652145,-666.55,0.00019726,2]
[372256928,1752564652154,-460.0,0.00019726,2]
[372256929,1752564652164,-830.90888764,0.00019763,2]
[372256930,1752564652174,-500.0,0.00019773,2]
[372256931,1752564652183,-500.0,0.00019773,2]
[372256932,1752564652193,-17369.74617564,0.000198,2]
[372256933,1752564652202,-9064.92519175,0.000199,2]
[372256934,1752564652212,-1075.87188743,0.00019957,2]
[372256935,1752564652222,-500.0,0.00019973,2]
[372256936,1752564652232,-500.0,0.00019973,2]
[372256937,1752564652242,-501.33550798,0.00019973,2]
[372256938,1752564652252,-500.0,0.00019973,2]
[372256939,1752564652262,-500.0,0.00019973,2]
[372256940,1752564652271,-500.0,0.00019973,2]
[372256941,1752564652281,-27907.48112134,0.00019989,2]
[372256951,1752564949259,5278.0,0.00027397,120]
[372256957,1752565545145,-414.0,0.00018246,2]
[372256958,1752565545166,-255.1731179,0.00018277,2]
[372256959,1752565545188,-136.09765692,0.00018381,2]
[372256961,1752565639080,-57.40793508,0.00018381,2]
[372256962,1752565639101,-160.0,0.00019003,2]
[372256963,1752565639122,-971.06400255,0.00019078,2]
[372256964,1752565639144,-1200.0,0.00019176,2]
[372256965,1752565639166,-300.0,0.00019177,2]
[372256966,1752565639188,-1200.0,0.00019177,2]
[372256967,1752565639210,-231.76457503,0.00019177,2]
[372256968,1752565642095,-68.23542497,0.00019177,2]
[372256969,1752565642117,-156.83496223,0.00019178,2]
[372256970,1752565651118,-303.16503777,0.00019178,2]
[372256971,1752565651140,-226.36018482,0.00019178,2]
[372256973,1752565750133,-300.0,0.00018421,2]
[372256974,1752565750158,-22014.061,0.00018422,2]
[372256975,1752565768098,-968.51546302,0.00018422,2]
[372256996,1752565832784,-152.67406978,0.00018422,2]
[372256998,1752565832795,-849.68100224,0.00019078,2]
[372257000,1752565832806,-300.0,0.00019177,2]
[372257002,1752565832816,-151.0,0.00019177,2]
[372257004,1752565832827,-1200.0,0.00019177,2]
[372257006,1752565832838,-233.63981518,0.00019178,2]
[372257008,1752565832848,-460.0,0.00019178,2]
[372257010,1752565832858,-460.0,0.00019178,2]
[372257012,1752565832868,-460.0,0.00019178,2]
[372257014,1752565832878,-460.0,0.00019178,2]
[372257016,1752565832888,-460.0,0.00019178,2]
[372257018,1752565832899,-460.0,0.00019178,2]
[372257020,1752565832909,-58.58621105,0.00019178,2]
[372257024,1752565832922,-401.41378895,0.00019178,2]
[372257026,1752565832931,-60.81421105,0.00019178,2]
[372257030,1752565832956,-399.18578895,0.00019178,2]
[372257032,1752565832966,-460.0,0.00019178,2]
[372257034,1752565832977,-460.0,0.00019178,2]
[372257036,1752565832986,-44.13860273,0.00019178,2]
[372257070,1752565839089,-415.86139727,0.00019178,2]
[372257071,1752565839100,-65.81186797,0.00019178,2]
[372257072,1752565839164,-394.18813203,0.00019178,2]
[372257073,1752565839175,-460.0,0.00019178,2]
[372257074,1752565839185,-460.0,0.00019178,2]
[372257075,1752565839195,-271.56123046,0.00019178,2]
[372257076,1752565839204,-460.0,0.00019178,2]
[372257077,1752565839214,-460.0,0.00019178,2]
[372257078,1752565839223,-460.0,0.00019178,2]
[372257079,1752565839233,-554.95,0.00019178,2]
[372257080,1752565839242,-460.0,0.00019178,2]
[372257081,1752565839252,-460.0,0.00019178,2]
[372257082,1752565839262,-460.0,0.00019178,2]
[372257083,1752565839271,-460.0,0.00019178,2]
[372257084,1752565839281,-460.0,0.00019178,2]
[372257085,1752565839291,-460.0,0.00019178,2]
[372257086,1752565839300,-564.78,0.00019178,2]
[372257087,1752565839310,-460.0,0.00019178,2]
[372257088,1752565839319,-460.0,0.00019178,2]
[372257089,1752565839328,-460.0,0.00019178,2]
[372257090,1752565839339,-460.0,0.00019178,2]
[372257091,1752565839349,-460.0,0.00019178,2]
[372257092,1752565839359,-460.0,0.00019178,2]
[372257093,1752565839368,-460.0,0.00019178,2]
[372257094,1752565839377,-460.0,0.00019178,2]
[372257095,1752565839387,-460.0,0.00019178,2]
[372257096,1752565839397,-460.0,0.00019178,2]
[372257097,1752565839407,-464.15773791,0.00019178,2]
[372257098,1752565839416,-460.0,0.00019178,2]
[372257099,1752565839426,-668.95,0.00019178,2]
[372257100,1752565839435,-460.0,0.00019178,2]
[372257101,1752565839445,-560.31,0.00019178,2]
[372257102,1752565839454,-460.0,0.00019178,2]
[372257103,1752565839463,-328.44699189,0.00019178,2]
[372257104,1752565839473,-460.0,0.00019178,2]
[372257105,1752565839482,-195.13794482,0.00019178,2]
[372257106,1752565839491,-460.0,0.00019178,2]
[372257107,1752565839501,-460.0,0.00019178,2]
[372257108,1752565839511,-460.0,0.00019178,2]
[372257109,1752565839520,-460.0,0.00019178,2]
[372257110,1752565839530,-460.0,0.00019178,2]
[372257111,1752565839540,-460.0,0.00019178,2]
[372257112,1752565839549,-180.35924725,0.00019178,2]
[372257113,1752565839560,-460.0,0.00019178,2]
[372257114,1752565839569,-460.0,0.00019178,2]
[372257115,1752565839579,-460.0,0.00019178,2]
[372257116,1752565839589,-460.0,0.00019178,2]
[372257117,1752565839598,-460.0,0.00019178,2]
[372257118,1752565839608,-460.0,0.00019178,2]
[372257119,1752565839618,-460.0,0.00019178,2]
[372257120,1752565839628,-526.5,0.00019178,2]
[372257121,1752565839638,-460.0,0.00019178,2]
[372257122,1752565839650,-460.0,0.00019178,2]
[372257123,1752565839660,-460.0,0.00019178,2]
[372257124,1752565839670,-460.0,0.00019178,2]
[372257125,1752565839679,-460.0,0.00019178,2]
[372257126,1752565839689,-4324.38,0.00019178,2]
[372257127,1752565839699,-460.0,0.00019178,2]
[372257128,1752565839708,-460.0,0.00019178,2]
[372257129,1752565839718,-803.83,0.00019178,2]
[372257130,1752565839728,-460.0,0.00019178,2]
[372257131,1752565839738,-460.0,0.00019178,2]
[372257132,1752565839748,-460.0,0.00019178,2]
[372257133,1752565839757,-460.0,0.00019178,2]
[372257134,1752565839767,-464.92275472,0.00019178,2]
[372257135,1752565839776,-460.0,0.00019178,2]
[372257136,1752565839786,-619.69,0.00019178,2]
[372257137,1752565839795,-460.0,0.00019178,2]
[372257138,1752565839804,-460.0,0.00019178,2]
[372257139,1752565839814,-460.0,0.00019178,2]
[372257140,1752565839824,-971.79,0.00019178,2]
[372257141,1752565839833,-460.0,0.00019178,2]
[372257142,1752565839843,-463.11174211,0.00019178,2]
[372257143,1752565839852,-460.0,0.00019178,2]
[372257144,1752565839862,-1328.78,0.00019178,2]
[372257145,1752565839871,-551.5,0.00019178,2]
[372257146,1752565839881,-373.6243836,0.00019178,2]
[372257147,1752565839890,-460.0,0.00019178,2]
[372257148,1752565839901,-392.01,0.00019178,2]
[372257149,1752565839912,-460.0,0.00019178,2]
[372257150,1752565839922,-564.59,0.00019178,2]
[372257151,1752565839932,-460.0,0.00019178,2]
[372257152,1752565839941,-460.0,0.00019178,2]
[372257153,1752565839951,-2790.15,0.00019178,2]
[372257154,1752565839960,-460.0,0.00019178,2]
[372257155,1752565839970,-460.0,0.00019178,2]
[372257156,1752565839980,-216.88112447,0.00019178,2]
[372257157,1752565839990,-460.0,0.00019178,2]
[372257158,1752565839999,-466.77,0.00019178,2]
[372257159,1752565840010,-460.0,0.00019178,2]
[372257160,1752565840022,-566.86,0.00019178,2]
[372257161,1752565840032,-460.0,0.00019178,2]
[372257162,1752565840042,-4356.69,0.00019178,2]
[372257163,1752565840052,-460.0,0.00019178,2]
[372257164,1752565840061,-3468.39,0.00019178,2]
[372257165,1752565840071,-552.69659412,0.00019178,2]
[372257166,1752565840081,-460.0,0.00019178,2]
[372257167,1752565840092,-460.0,0.00019178,2]
[372257168,1752565840102,-660.87,0.00019178,2]
[372257169,1752565840112,-460.0,0.00019178,2]
[372257170,1752565840121,-460.0,0.00019178,2]
[372257172,1752565840131,-460.0,0.00019178,2]
[372257174,1752565840140,-460.0,0.00019178,2]
[372257175,1752565840152,-460.0,0.00019178,2]
[372257176,1752565840161,-460.0,0.00019178,2]
[372257177,1752565840171,-460.0,0.00019178,2]
[372257178,1752565840180,-263.30539684,0.00019178,2]
[372257179,1752565840189,-609.04,0.00019178,2]
[372257180,1752565840198,-460.0,0.00019178,2]
[372257181,1752565840207,-460.0,0.00019178,2]
[372257182,1752565840217,-460.0,0.00019178,2]
[372257183,1752565840226,-460.0,0.00019178,2]
[372257184,1752565840235,-460.0,0.00019178,2]
[372257186,1752565840245,-2516.17,0.00019178,2]
[372257187,1752565840254,-1153.47,0.00019178,2]
[372257189,1752565840263,-657.12,0.00019178,2]
[372257191,1752565840273,-460.0,0.00019178,2]
[372257192,1752565840282,-2022.3,0.00019178,2]
[372257193,1752565840291,-460.0,0.00019178,2]
[372257194,1752565840300,-460.0,0.00019178,2]
[372257195,1752565840310,-460.0,0.00019178,2]
[372257196,1752565840319,-455.58154844,0.00019178,2]
[372257197,1752565840329,-1044.56,0.00019178,2]
[372257198,1752565840338,-460.0,0.00019178,2]
[372257199,1752565840348,-460.0,0.00019178,2]
[372257200,1752565840357,-1655.36,0.00019178,2]
[372257201,1752565840368,-460.0,0.00019178,2]
[372257202,1752565840378,-460.0,0.00019178,2]
[372257203,1752565840387,-460.0,0.00019178,2]
[372257204,1752565840399,-460.0,0.00019178,2]
[372257205,1752565840408,-460.0,0.00019178,2]
[372257206,1752565840418,-460.0,0.00019178,2]
[372257207,1752565840429,-460.0,0.00019178,2]
[372257208,1752565840438,-1774.83,0.00019178,2]
[372257209,1752565840448,-573.27,0.00019178,2]
[372257210,1752565840458,-460.0,0.00019178,2]
[372257211,1752565840468,-460.0,0.00019178,2]
[372257212,1752565840478,-853.81,0.00019178,2]
[372257213,1752565840487,-460.0,0.00019178,2]
[372257214,1752565840497,-460.0,0.00019178,2]
[372257215,1752565840506,-460.0,0.00019178,2]
[372257216,1752565840516,-500.0,0.00019178,2]
[372257217,1752565840526,-500.0,0.00019178,2]
[372257218,1752565840536,-500.0,0.00019178,2]
[372257219,1752565840546,-460.0,0.00019178,2]
[372257221,1752565840556,-460.0,0.00019178,2]
[372257223,1752565840566,-1130.97,0.00019178,2]
[372257224,1752565840575,-1555.35,0.00019178,2]
[372257225,1752565840585,-460.0,0.00019178,2]
[372257226,1752565840595,-460.0,0.00019178,2]
[372257227,1752565840605,-682.62,0.00019178,2]
[372257228,1752565840615,-460.0,0.00019178,2]
[372257229,1752565840625,-469.89547871,0.00019178,2]
[372257230,1752565840635,-665.25,0.00019178,2]
[372257232,1752565840644,-460.0,0.00019178,2]
[372257233,1752565840656,-1371.11,0.00019178,2]
[372257234,1752565840666,-460.0,0.00019178,2]
[372257235,1752565840677,-517.17,0.00019178,2]
[372257236,1752565840687,-460.0,0.00019178,2]
[372257237,1752565840697,-462.63352706,0.00019178,2]
[372257238,1752565840708,-460.0,0.00019178,2]
[372257239,1752565840719,-273.93270609,0.00019178,2]
[372257240,1752565840729,-460.0,0.00019178,2]
[372257241,1752565840740,-460.0,0.00019178,2]
[372257242,1752565840750,-460.0,0.00019178,2]
[372257243,1752565840760,-460.0,0.00019178,2]
[372257244,1752565840769,-460.0,0.00019178,2]
[372257245,1752565840779,-460.0,0.00019178,2]
[372257246,1752565840789,-460.0,0.00019178,2]
[372257247,1752565840799,-460.0,0.00019178,2]
[372257248,1752565840809,-460.0,0.00019178,2]
[372257249,1752565840830,-460.0,0.00019178,2]
[372257250,1752565840841,-476.7,0.00019178,2]
[372257251,1752565840852,-460.0,0.00019178,2]
[372257252,1752565840861,-460.0,0.00019178,2]
[372257253,1752565840872,-462.57664889,0.00019178,2]
[372257254,1752565840882,-1032.09,0.00019178,2]
[372257255,1752565840892,-260.17,0.00019178,2]
[372257256,1752565840904,-460.0,0.00019178,2]
[372257257,1752565840914,-460.0,0.00019178,2]
[372257258,1752565840924,-268.855862,0.00019178,2]
[372257259,1752565840935,-1597.57630168,0.00019178,2]
[372257260,1752565840944,-500.0,0.00019178,2]
[372257261,1752565840954,-2742.37062054,0.00019205,2]
[372257262,1752565840965,-388.04,0.00019442,3]
[372257263,1752565840975,-500.0,0.00019451,2]
[372257264,1752565840986,-500.0,0.00019451,2]
[372257265,1752565840996,-405.48,0.00019451,2]
[372257266,1752565841007,-460.0,0.00019452,2]
[372257267,1752565841021,-460.0,0.00019452,2]
[372257268,1752565841031,-460.0,0.00019452,2]
[372257269,1752565841041,-460.0,0.00019452,2]
[372257270,1752565841053,-460.0,0.00019452,2]
[372257271,1752565841063,-460.0,0.00019452,2]
[372257272,1752565841074,-460.0,0.00019452,2]
[372257273,1752565841085,-460.0,0.00019452,2]
[372257274,1752565841097,-460.0,0.00019452,2]
[372257275,1752565841108,-460.0,0.00019452,2]
[372257277,1752565841284,-460.0,0.00019452,2]
[372257278,1752565841294,-460.0,0.00019452,2]
[372257279,1752565841304,-460.0,0.00019452,2]
[372257280,1752565841314,-460.0,0.00019452,2]
[372257281,1752565841324,-460.0,0.00019452,2]
[372257282,1752565841333,-516.06450026,0.00019452,2]
[372257283,1752565841343,-554.95,0.00019452,2]
[372257284,1752565841353,-460.0,0.00019452,2]
[372257285,1752565841363,-460.0,0.00019452,2]
[372257286,1752565841373,-460.0,0.00019452,2]
[372257287,1752565841382,-460.0,0.00019452,2]
[372257288,1752565841392,-460.0,0.00019452,2]
[372257289,1752565841406,-564.78,0.00019452,2]
[372257290,1752565841416,-460.0,0.00019452,2]
[372257291,1752565841426,-460.0,0.00019452,2]
[372257292,1752565841436,-460.0,0.00019452,2]
[372257293,1752565841446,-386.55634865,0.00019452,2]
[372257294,1752565841456,-460.0,0.00019452,2]
[372257295,1752565841466,-460.0,0.00019452,2]
[372257296,1752565841476,-668.95,0.00019452,2]
[372257297,1752565841486,-460.0,0.00019452,2]
[372257298,1752565841496,-560.31,0.00019452,2]
[372257299,1752565841506,-460.0,0.00019452,2]
[372257300,1752565841516,-460.0,0.00019452,2]
[372257301,1752565841526,-460.0,0.00019452,2]
[372257302,1752565841536,-460.0,0.00019452,2]
[372257303,1752565841545,-460.0,0.00019452,2]
[372257304,1752565841555,-460.0,0.00019452,2]
[372257305,1752565841564,-460.0,0.00019452,2]
[372257306,1752565841574,-460.0,0.00019452,2]
[372257307,1752565841583,-460.0,0.00019452,2]
[372257308,1752565841592,-460.0,0.00019452,2]
[372257309,1752565841602,-195.76260256,0.00019452,2]
[372257310,1752565841611,-526.5,0.00019452,2]
[372257311,1752565841621,-460.0,0.00019452,2]
[372257312,1752565841631,-460.0,0.00019452,2]
[372257313,1752565841640,-460.0,0.00019452,2]
[372257314,1752565841653,-460.0,0.00019452,2]
[372257315,1752565841662,-460.0,0.00019452,2]
[372257317,1752565841672,-4324.38,0.00019452,2]
[372257318,1752565841681,-460.0,0.00019452,2]
[372257319,1752565841692,-460.0,0.00019452,2]
[372257320,1752565841702,-803.83,0.00019452,2]
[372257321,1752565841712,-460.0,0.00019452,2]
[372257322,1752565841722,-460.0,0.00019452,2]
[372257323,1752565841732,-460.0,0.00019452,2]
[372257324,1752565841742,-460.0,0.00019452,2]
[372257325,1752565841752,-460.0,0.00019452,2]
[372257326,1752565841762,-619.69,0.00019452,2]
[372257327,1752565841772,-971.79,0.00019452,2]
[372257328,1752565841782,-460.0,0.00019452,2]
[372257329,1752565841792,-460.0,0.00019452,2]
[372257330,1752565841802,-1328.78,0.00019452,2]
[372257331,1752565841811,-551.5,0.00019452,2]
[372257332,1752565841821,-460.0,0.00019452,2]
[372257333,1752565841831,-564.59,0.00019452,2]
[372257334,1752565841841,-460.0,0.00019452,2]
[372257335,1752565841851,-2790.15,0.00019452,2]
[372257336,1752565841860,-237.77885004,0.00019452,2]
[372257337,1752565841870,-460.0,0.00019452,2]
[372257338,1752565841880,-466.77,0.00019452,2]
[372257339,1752565841889,-460.0,0.00019452,2]
[372257340,1752565841902,-566.86,0.00019452,2]
[372257341,1752565841911,-4356.69,0.00019452,2]
[372257342,1752565841921,-460.0,0.00019452,2]
[372257343,1752565841930,-3468.39,0.00019452,2]
[372257344,1752565841940,-460.0,0.00019452,2]
[372257345,1752565841950,-460.0,0.00019452,2]
[372257346,1752565841959,-460.0,0.00019452,2]
[372257347,1752565841968,-460.0,0.00019452,2]
[372257348,1752565841978,-660.87,0.00019452,2]
[372257349,1752565841987,-460.0,0.00019452,2]
[372257350,1752565841997,-460.0,0.00019452,2]
[372257351,1752565842007,-460.0,0.00019452,2]
[372257352,1752565842022,-460.0,0.00019452,2]
[372257353,1752565842031,-460.0,0.00019452,2]
[372257354,1752565842041,-460.0,0.00019452,2]
[372257355,1752565842050,-466.57725566,0.00019452,2]
[372257356,1752565842060,-2516.17,0.00019452,2]
[372257357,1752565842070,-1153.47,0.00019452,2]
[372257358,1752565842079,-657.12,0.00019452,2]
[372257359,1752565842089,-2022.3,0.00019452,2]
[372257360,1752565842099,-460.0,0.00019452,2]
[372257361,1752565842108,-460.0,0.00019452,2]
[372257362,1752565842118,-1044.56,0.00019452,2]
[372257363,1752565842127,-460.0,0.00019452,2]
[372257364,1752565842137,-1655.36,0.00019452,2]
[372257365,1752565842147,-460.0,0.00019452,2]
[372257366,1752565842158,-251.54405148,0.00019452,2]
[372257367,1752565842168,-460.0,0.00019452,2]
[372257368,1752565842178,-460.0,0.00019452,2]
[372257369,1752565842187,-460.0,0.00019452,2]
[372257370,1752565842198,-460.0,0.00019452,2]
[372257371,1752565842207,-1774.83,0.00019452,2]
[372257372,1752565842217,-573.27,0.00019452,2]
[372257373,1752565842226,-460.0,0.00019452,2]
[372257374,1752565842235,-853.81,0.00019452,2]
[372257375,1752565842245,-463.93410969,0.00019452,2]
[372257376,1752565842255,-460.0,0.00019452,2]
[372257377,1752565842264,-464.3061091,0.00019452,2]
[372257378,1752565842274,-465.11398482,0.00019452,2]
[372257379,1752565842284,-460.0,0.00019452,2]
[372257380,1752565842293,-1130.97,0.00019452,2]
[372257381,1752565842304,-416.70141312,0.00019452,2]
[372257382,1752565842314,-1555.35,0.00019452,2]
[372257383,1752565842324,-460.0,0.00019452,2]
[372257384,1752565842333,-682.62,0.00019452,2]
[372257385,1752565842344,-460.0,0.00019452,2]
[372257386,1752565842354,-665.25,0.00019452,2]
[372257387,1752565842364,-1371.11,0.00019452,2]
[372257388,1752565842375,-517.17,0.00019452,2]
[372257389,1752565842385,-460.0,0.00019452,2]
[372257390,1752565842394,-460.0,0.00019452,2]
[372257391,1752565842407,-460.0,0.00019452,2]
[372257392,1752565842417,-460.0,0.00019452,2]
[372257393,1752565842427,-460.0,0.00019452,2]
[372257394,1752565842437,-460.0,0.00019452,2]
[372257395,1752565842446,-476.7,0.00019452,2]
[372257396,1752565842455,-1032.09,0.00019452,2]
[372257397,1752565842465,-460.0,0.00019452,2]
[372257398,1752565842475,-460.0,0.00019452,2]
[372257399,1752565842484,-1174.33388116,0.00019573,2]
[372257400,1752565842494,-317.1528883,0.00019573,2]
[372257401,1752565842503,-5770.43,0.000196,2]
[372257402,1752565842513,-95803.1330127,0.00019626,2]
[372257403,1752565842522,-500.0,0.00019673,2]
[372257404,1752565842532,-501.50161883,0.00019673,2]
[372257405,1752565842542,-500.0,0.00019673,2]
[372257406,1752565842552,-500.0,0.00019673,2]
[372257407,1752565842562,-500.0,0.00019673,2]
[372257408,1752565842571,-500.0,0.00019673,2]
[372257409,1752565842581,-500.0,0.00019673,2]
[372257410,1752565842591,-500.0,0.00019673,2]
[372257411,1752565842600,-500.0,0.00019673,2]
[372257412,1752565842610,-504.57181653,0.00019673,2]
[372257413,1752565842620,-500.80735244,0.00019673,2]
[372257414,1752565842629,-500.0,0.00019673,2]
[372257415,1752565842639,-500.0,0.00019673,2]
[372257416,1752565842649,-514.59780035,0.00019673,2]
[372257417,1752565842659,-500.0,0.00019673,2]
[372257418,1752565842668,-500.0,0.00019673,2]
[372257419,1752565842678,-500.0,0.00019673,2]
[372257420,1752565842688,-501.57991757,0.00019673,2]
[372257421,1752565842697,-501.11399687,0.00019673,2]
[372257422,1752565842707,-500.36908229,0.00019673,2]
[372257423,1752565842716,-2742.37062054,0.0001968,2]
[372257424,1752565842726,-460.0,0.00019726,2]
[372257425,1752565842736,-460.0,0.00019726,2]
[372257426,1752565842745,-460.0,0.00019726,2]
[372257427,1752565842755,-460.0,0.00019726,2]
[372257428,1752565842768,-460.0,0.00019726,2]
[372257429,1752565842778,-460.0,0.00019726,2]
[372257430,1752565842787,-460.0,0.00019726,2]
[372257431,1752565842797,-460.0,0.00019726,2]
[372257432,1752565842807,-460.0,0.00019726,2]
[372257433,1752565842817,-504.33546279,0.00019726,2]
[372257434,1752565842827,-460.0,0.00019726,2]
[372257435,1752565842836,-460.0,0.00019726,2]
[372257436,1752565842846,-460.0,0.00019726,2]
[372257437,1752565842855,-460.0,0.00019726,2]
[372257438,1752565842865,-554.95,0.00019726,2]
[372257439,1752565842875,-460.0,0.00019726,2]
[372257440,1752565842885,-460.0,0.00019726,2]
[372257441,1752565842894,-460.0,0.00019726,2]
[372257442,1752565842905,-460.0,0.00019726,2]
[372257443,1752565842914,-460.0,0.00019726,2]
[372257444,1752565842923,-564.78,0.00019726,2]
[372257445,1752565842933,-216.94396209,0.00019726,2]
[372257446,1752565842943,-460.0,0.00019726,2]
[372257447,1752565842953,-460.0,0.00019726,2]
[372257448,1752565842963,-460.0,0.00019726,2]
[372257449,1752565842973,-668.95,0.00019726,2]
[372257450,1752565842983,-460.0,0.00019726,2]
[372257451,1752565842992,-560.31,0.00019726,2]
[372257452,1752565843002,-460.0,0.00019726,2]
[372257453,1752565843016,-460.0,0.00019726,2]
[372257454,1752565843027,-460.0,0.00019726,2]
[372257455,1752565843037,-228.54568651,0.00019726,2]
[372257456,1752565843047,-460.0,0.00019726,2]
[372257457,1752565843057,-460.0,0.00019726,2]
[372257458,1752565843067,-470.99375516,0.00019726,2]
[372257459,1752565843076,-460.0,0.00019726,2]
[372257460,1752565843086,-470.97988062,0.00019726,2]
[372257461,1752565843097,-460.0,0.00019726,2]
[372257462,1752565843106,-526.5,0.00019726,2]
[372257463,1752565843116,-460.0,0.00019726,2]
[372257464,1752565843125,-460.0,0.00019726,2]
[372257466,1752565843136,-460.0,0.00019726,2]